bitfinex-derivatives/quotes_SOLF0:USTF0_20241026
["timestamp","ask_amount","ask_price","bid_price","bid_amount"]
[1729935489822,4.42,169.12,169.07,8.18692558]
[1729935491020,4.42,169.12,169.08,2.9602]
[1729935492915,1.2369,169.19,169.04,3.19621531]
[1729935493120,151.413814,169.16,169.12,8.18692558]
[1729935493421,143.22688842,169.16,169.12,8.18692558]
[1729935493624,8.18692558,169.15,169.09,2.9599]
[1729935493817,8.18692558,169.12,169.07,8.18692558]
[1729935494023,8.18692558,169.11,169.07,8.18692558]
[1729935494218,8.18692558,169.11,169.07,2.9603]
[1729935494522,8.18692558,169.1,169.07,2.9603]
[1729935495415,7.3797,169.12,169.07,2.9603]
[1729935495416,8.18692558,169.11,169.07,2.9603]
[1729935496422,11.14662558,169.11,169.07,2.9603]
[1729935500727,8.18692558,169.11,169.07,2.9603]
[1729935500929,15.56642558,169.12,169.07,11.14722558]
[1729935503423,2.9597,169.11,169.07,11.14732558]
[1729935504817,2.9597,169.11,169.07,2.9604]
[1729935505224,8.18692558,169.09,169.04,169.28310015]
[1729935505425,8.18692558,169.08,169.03,8.18692558]
[1729935505627,12.60692558,169.08,169.03,8.18692558]
[1729935506829,8.18692558,169.07,169.01,11.14822558]
[1729935507025,8.18692558,169.07,169.01,8.18692558]
[1729935507431,4.42,169.08,169.0,1.2162]
[1729935507432,11.14782558,169.05,169.0,11.14852558]
[1729935510439,1.2588,169.07,169.03,11.14802558]
[1729935511337,9.44572558,169.07,169.03,11.14802558]
[1729935511641,12.40612558,169.07,169.03,8.18692558]
[1729935513236,12.40612558,169.07,169.02,2.9613]
[1729935513736,12.40612558,169.07,169.02,11.14822558]
[1729935513938,11.14732558,169.07,169.02,11.14822558]
[1729935517256,11.14732558,169.07,169.02,2.9613]
[1729935517450,11.14732558,169.07,169.02,11.14822558]
[1729935517956,11.14732558,169.07,169.02,8.18692558]
[1729935517957,8.18692558,169.07,169.02,8.18692558]
[1729935518148,8.18692558,169.07,169.03,2.9611]
[1729935520854,11.14732558,169.07,169.03,2.9611]
[1729935526259,2.9609,169.05,169.0,2.9616]
[1729935526464,4.42,169.04,169.0,2.9616]
[1729935526762,8.18692558,169.01,168.96,1.48126831]
[1729935526955,2.962,168.98,168.94,8.18692558]
[1729935527156,2.962,168.98,168.95,3.21054318]
[1729935527157,7.382,168.98,168.95,3.21054318]
[1729935527458,7.382,168.98,168.94,8.18692558]
[1729935527662,4.42,168.98,168.94,8.18692558]
[1729935528964,4.42,168.98,168.97,8.18692558]
[1729935529459,4.42,169.01,168.97,8.18692558]
[1729935529963,8.18692558,169.05,169.0,8.18692558]
[1729935530153,8.18692558,169.11,169.04,8.18692558]
[1729935530477,8.18692558,169.11,168.98,4.42]
[1729935530478,4.42,169.1,169.06,8.18692558]
[1729935530961,10.63812558,169.12,169.07,8.18692558]
[1729935531353,4.42,169.11,169.07,8.18692558]
[1729935532167,7.3798,169.11,169.07,8.18692558]
[1729935532853,8.18692558,169.12,169.07,8.18692558]
[1729935533159,4.42,169.11,169.08,8.18692558]
[1729935534170,8.6509,169.13,169.08,8.18692558]
[1729935535062,2.9595,169.12,169.08,8.18692558]
[1729935538366,2.9595,169.12,169.07,11.14722558]
[1729935539566,11.14642558,169.12,169.07,11.14722558]
[1729935541167,11.14642558,169.12,169.07,8.18692558]
[1729935543165,8.18692558,169.12,169.07,8.18692558]
[1729935543369,2.9597,169.11,169.07,8.18692558]
[1729935545170,2.9597,169.11,169.06,11.14752558]
[1729935546265,2.9597,169.11,169.06,2.9606]
[1729935546470,2.9597,169.11,169.07,8.18692558]
[1729935550773,2.9597,169.11,169.09,8.18692558]
[1729935552684,2.9597,169.11,169.07,2.9604]
[1729935552883,2.9597,169.11,169.09,8.18692558]
[1729935554381,2.9597,169.11,169.07,2.9604]
[1729935554581,2.9597,169.11,169.09,8.18692558]
[1729935555478,2.9596,169.12,169.09,8.18692558]
[1729935558778,7.3794,169.13,169.09,8.18692558]
[1729935566584,4.42,169.13,169.09,8.18692558]
[1729935566884,4.42,169.13,169.08,8.18692558]
[1729935568388,2.9596,169.12,169.08,8.18692558]
[1729935577892,2.9598,169.11,169.06,2.9606]
[1729935578197,2.9598,169.11,169.08,8.18692558]
[1729935579694,4.42,169.13,169.08,8.18692558]
[1729935579896,2.9596,169.12,169.08,8.18692558]
[1729935581886,4.42,169.13,169.09,8.18692558]
[1729935582097,7.3794,169.13,169.11,8.18692558]
[1729935585298,7.3794,169.13,169.09,8.18692558]
[1729935588699,4.42,169.13,169.09,8.18692558]
[1729935588906,2.9596,169.12,169.09,8.18692558]
[1729935589804,7.3794,169.13,169.09,8.18692558]
[1729935594305,4.42,169.13,169.09,8.18692558]
[1729935594610,12.60692558,169.13,169.08,8.18692558]
[1729935596106,11.14682558,169.11,169.06,11.14732558]
[1729935598114,2.9599,169.11,169.06,11.14732558]
[1729935598515,2.9599,169.11,169.07,3.21110656]
[1729935598816,2.9599,169.11,169.06,11.14732558]
[1729935599009,2.9599,169.11,169.07,3.21112283]
[1729935599313,2.9599,169.11,169.06,11.14732558]
[1729935599519,2.9599,169.11,169.07,3.21207343]
[1729935599815,2.9599,169.11,169.06,11.14732558]
[1729935600005,2.9599,169.11,169.07,3.21205785]
[1729935600207,2.9599,169.11,169.06,11.14732558]
[1729935600407,2.9599,169.11,169.07,3.21225272]
[1729935600709,2.9599,169.11,169.08,8.18692558]
[1729935602014,4.42,169.13,169.1,8.18692558]
[1729935602616,4.42,169.13,169.09,8.18692558]
[1729935603508,2.9597,169.12,169.09,8.18692558]
[1729935604406,8.18692558,169.11,169.05,1.2764]
[1729935604607,11.14712558,169.08,169.06,3.21064612]
[1729935604907,11.14712558,169.08,169.04,8.18692558]
[1729935605107,11.14712558,169.08,169.05,3.21123627]
[1729935605414,11.14712558,169.08,169.04,8.18692558]
[1729935605714,11.14712558,169.08,169.05,3.21076935]
[1729935606022,11.14712558,169.08,169.04,8.18692558]
[1729935607110,8.18692558,169.07,169.02,11.14822558]
[1729935607312,8.18692558,169.07,169.03,3.20978297]
[1729935607513,8.18692558,169.07,169.04,3.20978297]
[1729935607712,8.18692558,169.07,169.02,11.14822558]
[1729935607916,8.18692558,169.07,169.03,3.20888743]
[1729935608216,8.18692558,169.07,169.02,11.14822558]
[1729935608418,8.18692558,169.05,169.03,3.20752388]
[1729935608714,8.18692558,169.04,168.98,9.41952558]
[1729935608912,8.18692558,169.04,168.99,8.3366063]
[1729935609217,11.14792558,169.04,169.0,3.20625638]
[1729935609411,11.14792558,169.04,168.98,12.38152558]
[1729935609606,11.14792558,169.04,168.99,8.33252914]
[1729935609811,11.14792558,169.04,169.0,3.20468831]
[1729935610012,8.18692558,169.04,169.01,3.20468831]
[1729935610217,15.54772558,169.05,168.99,11.14872558]
[1729935610524,15.54772558,169.05,169.0,3.20362797]
[1729935610820,15.54772558,169.05,169.0,2.9616]
[1729935611019,15.54772558,169.05,168.99,8.18692558]
[1729935611217,15.54772558,169.05,169.0,3.20252629]
[1729935611416,15.54772558,169.05,168.99,11.14862558]
[1729935611612,15.54772558,169.05,169.0,3.20262374]
[1729935611817,4.4,169.05,169.02,8.18692558]
[1729935612417,4.4,169.05,169.02,11.14812558]
[1729935615615,4.4,169.05,169.01,8.18692558]
[1729935616816,4.4,169.05,169.01,11.14832558]
[1729935618428,4.4,169.05,169.02,8.18692558]
[1729935618725,4.4,169.05,169.03,2.9611]
[1729935620019,2.9604,169.07,169.03,2.9611]
[1729935620727,2.9604,169.07,169.02,11.14822558]
[1729935622726,11.14732558,169.07,169.02,11.14822558]
[1729935623525,8.18692558,169.07,169.02,11.14822558]
[1729935623827,11.14732558,169.07,169.02,2.9613]
[1729935628729,11.14732558,169.07,169.03,2.9611]
[1729935631822,8.18692558,169.07,169.03,2.9611]
[1729935632026,8.18692558,169.07,169.04,2.9609]
[1729935632239,12.58692558,169.08,169.04,2.9609]
[1729935632729,1.2346,169.11,169.04,8.18692558]
[1729935632939,4.4,169.1,169.05,8.18692558]
[1729935633324,11.14672558,169.11,169.05,8.18692558]
[1729935633530,8.18692558,169.09,169.01,1.1943]
[1729935633835,8.18692558,169.09,169.04,8.18692558]
[1729935635224,8.18692558,169.09,169.05,2.9606]
[1729935636632,8.18692558,169.09,169.06,2.9605]
[1729935637837,2.9599,169.1,169.06,2.9605]
[1729935638329,2.9599,169.1,169.05,2.9607]
[1729935640637,2.9599,169.1,169.05,11.14762558]
[1729935641837,7.3599,169.1,169.05,11.14762558]
[1729935649738,7.3599,169.1,169.01,1.1943]
[1729935649739,4.4,169.11,169.07,11.14722558]
[1729935650746,11.14652558,169.12,169.07,11.14722558]
[1729935650936,11.14652558,169.12,169.08,2.9601]
[1729935650937,8.18692558,169.12,169.08,2.9601]
[1729935651140,8.18692558,169.12,169.08,11.14702558]
[1729935657249,11.14652558,169.12,169.08,2.9601]
[1729935659849,8.18692558,169.12,169.07,8.18692558]
[1729935660052,11.14662558,169.11,169.07,8.18692558]
[1729935660255,8.18692558,169.09,169.04,1.3072]
[1729935660452,2.9607,169.06,169.02,8.18692558]
[1729935660657,11.14762558,169.06,169.01,1.1943]
[1729935660956,11.14762558,169.06,169.02,3.20361999]
[1729935661153,11.14762558,169.06,169.01,9.38122558]
[1729935661850,11.14762558,169.06,169.02,3.20446215]
[1729935662053,11.14762558,169.06,169.01,9.38122558]
[1729935662250,11.14762558,169.06,169.02,3.20483088]
[1729935662450,11.14762558,169.06,169.01,12.34262558]
[1729935662655,11.14762558,169.06,169.02,3.20512938]
[1729935662856,11.14762558,169.06,169.01,12.34262558]
[1729935663056,11.14762558,169.06,169.02,3.20541848]
[1729935663256,11.14762558,169.06,169.01,12.34262558]
[1729935663453,11.14762558,169.06,169.02,3.20555261]
[1729935663659,11.14762558,169.06,169.01,12.34262558]
[1729935663858,11.14762558,169.06,169.02,3.20553384]
[1729935664060,11.14762558,169.06,169.01,12.34262558]
[1729935664263,11.14762558,169.06,169.02,3.2055169]
[1729935664456,11.14762558,169.06,169.01,12.34262558]
[1729935664657,11.14762558,169.06,169.02,3.20569857]
[1729935664862,11.14762558,169.06,169.01,12.34262558]
[1729935665053,11.14762558,169.06,169.02,6.16699857]
[1729935665253,11.14762558,169.06,169.02,2.9613]
[1729935668861,8.18692558,169.06,169.02,2.9613]
[1729935675962,4.4,169.07,169.04,8.18692558]
[1729935676161,4.4,169.07,169.0,187.51745557]
[1729935676162,5.6463,169.12,169.06,8.18692558]
[1729935676462,13.83322558,169.12,169.08,8.18692558]
[1729935677460,13.83322558,169.12,169.06,11.14732558]
[1729935677461,11.14682558,169.11,169.06,11.14732558]
[1729935681364,8.18692558,169.08,169.01,3.749]
[1729935681568,8.18692558,169.07,169.03,8.18692558]
[1729935681871,4.4,169.08,169.01,10.69592558]
[1729935681872,8.18692558,169.06,169.01,10.69592558]
[1729935682173,8.18692558,169.06,169.02,3.20942817]
[1729935682468,8.18692558,169.06,169.01,10.69592558]
[1729935682670,8.18692558,169.06,169.02,3.20967838]
[1729935682871,8.18692558,169.03,168.93,1.233]
[1729935683074,8.18692558,169.02,168.97,8.18692558]
[1729935683366,4.4,169.03,168.99,2.9618]
[1729935684063,4.4,169.03,169.0,8.18692558]
[1729935686669,4.4,169.03,169.0,11.14852558]
[1729935691377,4.4,169.03,169.0,8.18692558]
[1729935692374,4.4,169.03,169.01,2.9614]
[1729935692673,4.4,169.05,169.02,8.18692558]
[1729935693570,8.18692558,169.07,169.02,8.18692558]
[1729935693771,12.58692558,169.07,169.02,8.18692558]
[1729935694483,15.54732558,169.07,169.02,11.14812558]
[1729935695180,11.14752558,169.06,169.01,2.9614]
[1729935695479,11.14752558,169.06,169.01,11.14832558]
[1729935697776,2.9606,169.06,169.01,11.14832558]
[1729935697981,8.18692558,169.05,169.01,11.14832558]
[1729935707387,2.9606,169.06,169.01,11.14832558]
[1729935707691,11.14752558,169.06,169.01,11.14832558]
[1729935708288,2.9606,169.06,169.01,11.14832558]
[1729935708491,11.14752558,169.06,169.01,11.14832558]
[1729935712185,1.2463,169.12,169.05,8.18692558]
[1729935712186,2.9597,169.11,169.05,8.18692558]
[1729935712381,2.9597,169.11,169.07,8.18692558]
[1729935712580,13.81322558,169.12,169.07,8.18692558]
[1729935713092,8.18692558,169.11,169.07,8.18692558]
[1729935713292,11.14682558,169.1,169.06,8.18692558]
[1729935713786,2.9602,169.09,169.04,8.18692558]
[1729935715192,8.18692558,169.07,169.03,8.18692558]
[1729935717796,11.14752558,169.06,169.01,11.14832558]
[1729935718892,8.18692558,169.04,169.0,8.18692558]
[1729935719096,8.18692558,169.03,168.99,2.9617]
[1729935719902,8.18692558,169.03,169.0,2.9615]
[1729935720400,4.38,169.04,169.0,2.9615]
[1729935720897,4.38,169.04,169.01,11.14822558]
[1729935728198,4.38,169.04,169.01,2.9613]
[1729935731013,4.38,169.04,169.0,2.9616]
[1729935732298,4.38,169.07,169.02,8.18692558]
[1729935732502,4.38,169.09,169.05,8.18692558]
[1729935733308,4.38,169.09,169.05,11.14762558]
[1729935734200,152.93071634,169.14,169.07,8.18692558]
[1729935734396,4.38,169.13,169.09,8.18692558]
[1729935735001,4.38,169.13,169.09,11.14692558]
[1729935736908,2.959,169.15,169.09,11.14692558]
[1729935737103,4.38,169.17,169.13,8.18692558]
[1729935737414,8.18692558,169.18,169.13,8.18692558]
[1729935737615,4.38,169.17,169.13,8.18692558]
[1729935738314,8.18692558,169.14,169.11,2.9597]
[1729935738512,8.18692558,169.14,169.09,10.72282558]
[1729935738818,8.18692558,169.13,169.09,2.5359]
[1729935739015,4.38,169.17,169.1,2.9598]
[1729935739016,8.18692558,169.14,169.1,2.9598]
[1729935742017,8.18692558,169.14,169.09,13.68272558]
[1729935742218,8.18692558,169.14,169.09,12.40232558]
[1729935743410,8.18692558,169.14,169.09,9.44242558]
[1729935743614,8.18692558,169.14,169.1,2.9599]
[1729935744216,8.18692558,169.14,169.09,9.44242558]
[1729935744416,8.18692558,169.14,169.11,2.9596]
[1729935744820,7.3388,169.17,169.11,11.14652558]
[1729935745016,8.18692558,169.16,169.11,11.14652558]
[1729935746726,11.14572558,169.16,169.11,11.14652558]
[1729935748622,11.14572558,169.16,169.11,2.9596]
[1729935748829,8.18692558,169.14,169.11,2.9596]
[1729935751128,8.18692558,169.14,169.09,9.44242558]
[1729935751326,8.18692558,169.14,169.1,2.9599]
[1729935755927,2.9599,169.1,169.05,2.9606]
[1729935756128,8.18692558,169.08,169.03,8.18692558]
[1729935757032,8.18692558,169.08,169.06,2.9605]
[1729935757425,4.38,169.13,169.05,8.18692558]
[1729935757832,8.18692558,169.1,169.05,8.18692558]
[1729935758331,8.18692558,169.1,169.07,2.9604]
[1729935760529,2.9596,169.12,169.07,2.9604]
[1729935760729,8.18692558,169.11,169.07,2.9604]
[1729935760926,8.18692558,169.11,169.06,2.9604]
[1729935761130,8.18692558,169.11,169.05,8.18692558]
[1729935761727,8.18692558,169.11,169.06,8.18692558]
[1729935762130,8.18692558,169.11,169.07,2.9603]
[1729935763940,4.38,169.13,169.09,2.9599]
[1729935764138,12.56692558,169.13,169.09,2.9599]
[1729935766638,12.56692558,169.13,169.09,2.96]
[1729935768934,12.56692558,169.13,169.08,2.9601]
[1729935769139,12.56692558,169.13,169.07,8.18692558]
[1729935769537,12.56692558,169.13,169.09,2.9599]
[1729935771441,8.18692558,169.12,169.09,2.9599]
[1729935775449,12.56692558,169.13,169.09,11.14682558]
[1729935778543,12.56692558,169.13,169.09,8.18692558]
[1729935778749,4.38,169.14,169.1,2.9597]
[1729935779042,2.9591,169.15,169.1,11.14662558]
[1729935779250,7.3391,169.15,169.1,11.14662558]
[1729935779548,7.3391,169.15,169.11,2.9597]
[1729935780538,4.38,169.17,169.13,2.9593]
[1729935782938,8.18692558,169.16,169.12,11.14642558]
[1729935784049,7.3387,169.17,169.12,2.9595]
[1729935784050,8.18692558,169.15,169.12,2.9595]
[1729935784446,8.18692558,169.15,169.1,8.18692558]
[1729935784643,4.38,169.17,169.08,1.2197]
[1729935784644,8.18692558,169.13,169.08,1.2197]
[1729935784846,8.18692558,169.13,169.07,9.44102558]
[1729935785047,12.56692558,169.13,169.07,9.44102558]
[1729935785449,8.18692558,169.12,169.07,9.44102558]
[1729935786245,8.18692558,169.12,169.08,2.9601]
[1729935788550,8.18692558,169.11,169.06,8.18692558]
[1729935788757,8.18692558,169.09,169.05,11.14762558]
[1729935790458,11.14702558,169.09,169.05,8.18692558]
[1729935790751,15.52702558,169.09,169.04,2.9609]
[1729935790948,15.52702558,169.09,169.03,1.1963]
[1729935790949,8.18692558,169.08,169.03,8.18692558]
[1729935791149,11.14722558,169.08,169.03,11.14802558]
[1729935792145,8.18692558,169.07,169.0,1.48084812]
[1729935792355,8.18692558,169.03,168.97,8.18692558]
[1729935792553,8.18692558,169.03,168.98,3.20138281]
[1729935792754,8.18692558,169.03,168.97,8.18692558]
[1729935793256,11.14812558,169.03,168.98,2.9619]
[1729935794252,8.18692558,169.03,168.98,2.9619]
[1729935794448,4.38,169.04,169.0,8.18692558]
[1729935795651,12.56692558,169.04,169.0,8.18692558]
[1729935796348,12.56692558,169.04,169.0,11.14852558]
[1729935798563,4.38,169.04,169.0,11.14852558]
[1729935800760,8.18692558,169.01,168.95,176.55914974]
[1729935800964,8.18692558,169.01,168.96,11.14922558]
[1729935803465,11.14852558,169.01,168.96,8.18692558]
[1729935803861,12.56692558,169.0,168.95,183.47367532]
[1729935804063,2.9619,168.99,168.95,183.47367532]
[1729935807559,15.52852558,169.0,168.96,8.18692558]
[1729935808369,4.38,169.0,168.96,11.14922558]
[1729935808874,2.9611,169.03,168.99,8.18692558]
[1729935809065,4.38,169.02,168.99,8.18692558]
[1729935815882,4.38,169.02,168.99,11.14872558]
[1729935819080,7.3408,169.05,169.01,8.18692558]
[1729935819978,7.3408,169.05,168.97,2.5329]
[1729935819979,8.18692558,169.02,168.98,2.9619]
[1729935820178,4.38,169.01,168.91,8.18692558]
[1729935820484,8.18692558,168.96,168.9,2.9632]
[1729935820783,8.18692558,168.96,168.91,8.18692558]
[1729935821181,4.38,168.99,168.95,8.18692558]
[1729935821382,3.7441,169.04,168.98,8.18692558]
[1729935821383,4.38,169.0,168.98,8.18692558]
[1729935821579,4.38,169.02,168.98,8.18692558]
[1729935822285,4.38,169.02,169.0,8.18692558]
[1729935822585,4.38,169.02,169.01,8.18692558]
[1729935823380,4.38,169.02,168.92,5.10528331]
[1729935823584,12.56692558,169.02,168.96,8.18692558]
[1729935824191,12.56692558,169.02,168.98,8.18692558]
[1729935825293,8.18692558,169.0,168.96,8.18692558]
[1729935826391,20.14733948,169.02,168.96,2.9623]
[1729935826788,4.38,169.02,168.94,2.9625]
[1729935826994,12.80593948,169.0,168.94,2.9625]
[1729935828189,4.38,169.02,168.94,2.9625]
[1729935828389,2.9618,168.99,168.94,2.9625]
[1729935828790,15.76743948,169.01,168.95,2.9625]
[1729935828994,2.9615,169.01,168.95,2.9625]
[1729935829586,2.9617,169.0,168.95,2.9625]
[1729935830498,12.80593948,169.0,168.91,3.8205]
[1729935830903,4.38,169.02,168.91,3.8205]
[1729935831092,2.962,168.98,168.92,2.9629]
[1729935831395,7.422,168.98,168.92,2.9629]
[1729935834186,4.46,168.98,168.91,3.8205]
[1729935834399,4.46,168.98,168.94,2.9626]
[1729935835286,2.9616,169.0,168.94,2.9626]
[1729935835486,7.4216,169.0,168.94,2.9626]
[1729935835691,7.4216,169.0,168.91,3.8205]
[1729935835692,3.6754,169.04,168.96,2.9622]
[1729935835892,4.46,169.03,168.96,2.9622]
[1729935836292,2.9614,169.02,168.96,2.9622]
[1729935836702,2.9614,169.02,168.93,12.80593948]
[1729935838198,12.80593948,169.02,168.92,4.46]
[1729935839405,12.80593948,169.02,168.93,12.80593948]
[1729935839910,12.80593948,169.02,168.96,2.9623]
[1729935841499,2.9615,169.01,168.96,2.9623]
[1729935843406,4.46,169.02,168.98,2.962]
[1729935843901,4.46,169.02,168.95,12.80593948]
[1729935844096,4.46,169.02,168.97,2.9622]
[1729935844803,7.4213,169.02,168.97,2.9622]
[1729935846112,2.9617,169.0,168.95,2.9625]
[1729935846313,8.19618231,168.99,168.95,11.15868231]
[1729935850013,8.19618231,168.99,168.95,8.19618231]
[1729935850312,8.19618231,168.99,168.96,2.9623]
[1729935851807,8.19618231,168.99,168.95,8.19618231]
[1729935852013,8.19618231,168.99,168.95,11.15868231]
[1729935852519,2.9616,169.0,168.95,11.15868231]
[1729935853211,2.9616,169.0,168.96,8.19618231]
[1729935853915,15.61758231,169.02,168.96,11.15838231]
[1729935857118,8.19618231,169.0,168.96,2.9622]
[1729935857318,8.19618231,169.0,168.97,3.20605611]
[1729935857508,8.19618231,169.0,168.96,2.9622]
[1729935857713,8.19618231,169.0,168.97,3.20601941]
[1729935858008,8.19618231,169.0,168.96,2.9622]
[1729935858213,8.19618231,169.0,168.97,3.20598547]
[1729935858414,8.19618231,169.0,168.96,2.9622]
[1729935858613,8.19618231,169.0,168.97,3.20605394]
[1729935858817,8.19618231,169.0,168.96,2.9622]
[1729935859025,8.19618231,169.0,168.97,3.20729391]
[1729935859318,8.19618231,169.0,168.96,2.9622]
[1729935859514,8.19618231,169.0,168.97,3.20861522]
[1729935859715,8.19618231,169.0,168.98,3.20861522]
[1729935859915,8.19618231,169.0,168.96,2.9622]
[1729935860117,8.19618231,169.0,168.97,3.2083592]
[1729935860316,8.19618231,169.0,168.98,3.2083592]
[1729935860512,11.15788231,169.0,168.95,2.9625]
[1729935860717,11.15788231,169.0,168.96,1.48138391]
[1729935860918,11.15788231,169.0,168.97,3.20950073]
[1729935861221,8.19618231,168.99,168.93,8.19618231]
[1729935861521,8.19618231,168.99,168.94,9.82833657]
[1729935861721,8.19618231,168.99,168.95,9.82833657]
[1729935861916,8.19618231,168.99,168.96,8.34684579]
[1729935862116,8.19618231,168.99,168.97,3.21019447]
[1729935862325,11.15798231,168.99,168.95,2.9625]
[1729935862625,4.4,168.98,168.96,3.21005063]
[1729935862924,2.9627,168.95,168.9,2.9633]
[1729935863127,8.19618231,168.93,168.91,9.83371096]
[1729935863324,8.19618231,168.93,168.92,3.21214391]
[1729935864030,11.15908231,168.93,168.92,3.21214391]
[1729935864423,11.15908231,168.93,168.87,8.19618231]
[1729935864821,11.15908231,168.93,168.88,9.83285987]
[1729935865025,11.15908231,168.93,168.89,9.83285987]
[1729935865323,11.15908231,168.93,168.88,2.9637]
[1729935865529,2.9629,168.93,168.89,3.11562061]
[1729935865725,8.19618231,168.92,168.88,2.9637]
[1729935865925,8.19618231,168.92,168.89,3.11585067]
[1729935866126,8.19618231,168.92,168.87,8.19618231]
[1729935866127,11.15938231,168.92,168.87,2.9639]
[1729935866326,8.19618231,168.92,168.88,11.31121456]
[1729935866526,8.19618231,168.92,168.88,8.19618231]
[1729935867318,8.19618231,168.92,168.88,11.15988231]
[1729935869524,2.9629,168.93,168.89,2.9636]
[1729935869738,8.19618231,168.92,168.89,2.9636]
[1729935871442,4.4,168.93,168.9,2.9632]
[1729935871643,8.19618231,168.94,168.9,2.9632]
[1729935871644,57.58,169.02,168.9,8.19618231]
[1729935871847,4.4,169.01,168.92,8.19618231]
[1729935872049,8.19618231,168.97,168.92,8.19618231]
[1729935872342,12.59618231,168.97,168.92,8.19618231]
[1729935872542,12.59618231,168.97,168.88,1.48192393]
[1729935872543,8.19618231,168.95,168.88,1.48192393]
[1729935872744,8.19618231,168.94,168.89,11.30863634]
[1729935872943,4.4,168.93,168.89,8.19618231]
[1729935873238,12.59618231,168.93,168.87,8.19618231]
[1729935873439,8.19618231,168.92,168.88,3.11294603]
[1729935873640,8.19618231,168.92,168.87,8.19618231]
[1729935874243,8.19618231,168.9,168.86,11.16008231]
[1729935874551,8.19618231,168.9,168.86,8.19618231]
[1729935876244,8.19618231,168.9,168.88,2.9637]
[1729935877446,7.3629,168.93,168.88,2.9637]
[1729935877646,8.19618231,168.92,168.88,2.9637]
[1729935879751,8.19618231,168.91,168.88,2.9637]
[1729935884550,4.4,168.93,168.84,1.48207136]
[1729935884551,8.19618231,168.9,168.84,1.48207136]
[1729935884754,12.59618231,168.89,168.86,2.964]
[1729935885350,15.55978231,168.89,168.84,2.9643]
[1729935885557,12.59618231,168.89,168.83,8.19618231]
[1729935886051,12.59618231,168.89,168.85,2.9641]
[1729935886763,4.4,168.89,168.85,8.19618231]
[1729935887062,4.4,168.89,168.86,2.9641]
[1729935888258,4.4,168.89,168.88,2.9637]
[1729935888656,4.4,168.92,168.88,2.9637]
[1729935888851,8.19618231,168.94,168.88,8.19618231]
[1729935889159,4.4,168.92,168.89,11.15958231]
[1729935890056,159.03016289,168.96,168.89,8.19618231]
[1729935890252,4.44,168.95,168.92,2.963]
[1729935890961,12.63618231,168.95,168.91,8.19618231]
[1729935892260,12.63618231,168.95,168.91,11.15938231]
[1729935894361,12.63618231,168.95,168.89,8.19618231]
[1729935894362,8.19618231,168.94,168.89,8.19618231]
[1729935894562,11.15898231,168.94,168.89,11.15968231]
[1729935895956,8.19618231,168.92,168.89,8.19618231]
[1729935896159,8.19618231,168.91,168.88,2.9637]
[1729935896661,12.63618231,168.91,168.88,2.9637]
[1729935900064,4.44,168.91,168.87,8.19618231]
[1729935900255,4.44,168.91,168.89,8.19618231]
[1729935900762,4.44,168.91,168.89,11.15978231]
[1729935903868,8.19618231,168.9,168.74,9.33273599]
[1729935904077,11.16008231,168.88,168.82,8.19618231]
[1729935905373,11.16008231,168.88,168.83,2.9645]
[1729935906374,11.16008231,168.88,168.83,11.16068231]
[1729935907769,2.9635,168.9,168.85,11.16028231]
[1729935911083,15.59948231,168.91,168.86,2.964]
[1729935911287,2.4823,168.94,168.88,8.19618231]
[1729935911473,4.44,168.93,168.89,8.19618231]
[1729935912088,4.44,168.93,168.84,3.10889749]
[1729935912387,4.44,168.93,168.89,8.19618231]
[1729935913279,2.9629,168.93,168.89,8.19618231]
[1729935913484,7.4029,168.93,168.89,8.19618231]
[1729935915688,2.962,168.99,168.93,2.9628]
[1729935915881,12.63618231,168.98,168.93,11.15898231]
[1729935916989,11.15838231,168.97,168.93,8.19618231]
[1729935917395,11.15838231,168.97,168.92,8.19618231]
[1729935918284,11.15838231,168.97,168.92,11.15918231]
[1729935920590,11.15838231,168.97,168.93,8.19618231]
[1729935921184,11.15798231,168.99,168.94,11.15878231]
[1729935921389,4.48,168.97,168.94,11.15878231]
[1729935921781,4.48,168.97,168.94,8.19618231]
[1729935927203,4.48,169.02,168.96,8.19618231]
[1729935927493,4.48,169.02,168.98,8.19618231]
[1729935927997,12.67618231,169.03,168.98,8.19618231]
[1729935928194,1.1953,169.06,168.99,8.19618231]
[1729935928389,4.48,169.06,169.01,8.19618231]
[1729935928695,12.67618231,169.06,169.01,8.19618231]
[1729935930293,2.9608,169.05,169.01,8.19618231]
[1729935930496,12.67618231,169.06,169.01,8.19618231]
[1729935931387,15.63678231,169.06,169.01,11.15758231]